[Event "*** Titled Tuesday Blitz"]
[Site "Chess.com"]
[Date "2018.10.02"]
[Round "5"]
[White "lavr92"]
[Black "pKiLz5Rn9b"]
[Result "0-1"]
[WhiteElo "2519"]
[BlackElo "2796"]
[TimeControl "180+2"]
[EndTime "14:01:54 PDT"]
[Termination "pKiLz5Rn9b won by resignation"]

1. d4 {[%clk 0:03:01.9]} 1... Nf6 {[%clk 0:03:01]} 2. c4 {[%clk 0:03:02.7]} 2...
e6 {[%clk 0:03:02.1]} 3. Nc3 {[%clk 0:03:03.7]} 3... Bb4 {[%clk 0:03:02.9]} 4.
g3 {[%clk 0:03:04.6]} 4... O-O {[%clk 0:03:02.6]} 5. Bg2 {[%clk 0:03:05.7]} 5...
Nc6 {[%clk 0:03:03.7]} 6. Nf3 {[%clk 0:03:06.5]} 6... Bxc3+ {[%clk 0:03:04.6]}
7. bxc3 {[%clk 0:03:06.9]} 7... b6 {[%clk 0:02:52.7]} 8. O-O {[%clk 0:02:03.1]}
8... Ba6 {[%clk 0:02:52.6]} 9. Ne5 {[%clk 0:01:57.4]} 9... Na5 {[%clk 0:02:15]}
10. Bxa8 {[%clk 0:01:44.5]} 10... Qxa8 {[%clk 0:02:16.9]} 11. Bg5 {[%clk
0:01:44.5]} 11... Ne4 {[%clk 0:02:14.1]} 12. Bd2 {[%clk 0:01:32.6]} 12... d6
{[%clk 0:02:13.1]} 13. Nd3 {[%clk 0:01:31.8]} 13... Nxc4 {[%clk 0:02:09.8]} 14.
Be1 {[%clk 0:01:32.3]} 14... Re8 {[%clk 0:01:56.8]} 15. Qc1 {[%clk 0:01:31.8]}
15... e5 {[%clk 0:01:52.4]} 16. f3 {[%clk 0:01:06.9]} 16... Nf6 {[%clk
0:01:53.2]} 17. e4 {[%clk 0:00:58.8]} 17... Nxe4 {[%clk 0:01:48.7]} 18. fxe4
{[%clk 0:00:58.1]} 18... Qxe4 {[%clk 0:01:50.6]} 19. Nf2 {[%clk 0:00:53.6]}
19... Qd5 {[%clk 0:01:51]} 20. Qc2 {[%clk 0:00:06.2]} 20... Ne3 {[%clk
0:01:25.5]} 21. Qe4 {[%clk 0:00:06.7]} 21... Qxe4 {[%clk 0:01:26.1]} 22. Nxe4
{[%clk 0:00:08.6]} 22... Nxf1 {[%clk 0:01:24.3]} 23. d5 {[%clk 0:00:06.9]} 23...
Ne3 {[%clk 0:01:23]} 24. Bf2 {[%clk 0:00:08]} 24... Nxd5 {[%clk 0:01:23.9]} 25.
a4 {[%clk 0:00:08.7]} 25... Bd3 {[%clk 0:01:23.3]} 26. Nd2 {[%clk 0:00:09.6]}
26... e4 {[%clk 0:01:24.4]} 27. c4 {[%clk 0:00:10]} 27... e3 {[%clk 0:01:23.4]}
0-1

[Event "*** Titled Tuesday Blitz"]
[Site "Chess.com"]
[Date "2018.10.02"]
[Round "5"]
[White "WPWPWP-2015"]
[Black "aquaticpineapples"]
[Result "0-1"]
[WhiteElo "2276"]
[BlackElo "2039"]
[TimeControl "180+2"]
[EndTime "14:01:54 PDT"]
[Termination "aquaticpineapples won by resignation"]

1. d4 {[%clk 0:03:01.9]} 1... d5 {[%clk 0:03:00.8]} 2. c4 {[%clk 0:03:01.7]}
2... c6 {[%clk 0:03:01.9]} 3. Nf3 {[%clk 0:03:00.9]} 3... Nf6 {[%clk 0:03:03]}
4. Nc3 {[%clk 0:03:01.7]} 4... e6 {[%clk 0:03:04.1]} 5. e3 {[%clk 0:02:55.3]}
5... Bd6 {[%clk 0:03:02.3]} 6. b3 {[%clk 0:02:55.8]} 6... Nbd7 {[%clk
0:03:02.6]} 7. Be2 {[%clk 0:02:55.7]} 7... O-O {[%clk 0:03:03.1]} 8. O-O {[%clk
0:02:56.3]} 8... Re8 {[%clk 0:02:59.7]} 9. cxd5 {[%clk 0:02:56.1]} 9... exd5
{[%clk 0:03:00]} 10. Bb2 {[%clk 0:02:55.8]} 10... Qe7 {[%clk 0:02:58.8]} 11. Rc1
{[%clk 0:02:51.7]} 11... Ne4 {[%clk 0:02:55.2]} 12. Ne1 {[%clk 0:02:42.6]} 12...
f5 {[%clk 0:02:49.9]} 13. Nd3 {[%clk 0:02:41]} 13... Rf8 {[%clk 0:02:33.7]} 14.
g3 {[%clk 0:02:31.7]} 14... Rf6 {[%clk 0:02:09]} 15. Re1 {[%clk 0:02:25.6]}
15... Rh6 {[%clk 0:02:02.9]} 16. Bf1 {[%clk 0:02:24.3]} 16... Ndf6 {[%clk
0:01:53.6]} 17. Nxe4 {[%clk 0:01:58.8]} 17... fxe4 {[%clk 0:01:51.9]} 18. Ne5
{[%clk 0:01:58.6]} 18... Bxe5 {[%clk 0:01:41.8]} 19. dxe5 {[%clk 0:01:59.3]}
19... Ng4 {[%clk 0:01:42.4]} 20. e6 {[%clk 0:01:02.9]} 20... Nxh2 {[%clk
0:01:33.9]} 21. Bg2 {[%clk 0:01:00.6]} 21... Bxe6 {[%clk 0:01:28.8]} 22. Qd4
{[%clk 0:01:00.3]} 22... Bg4 {[%clk 0:01:01.4]} 23. Qe5 {[%clk 0:00:48.3]} 23...
Nf3+ {[%clk 0:00:57.9]} 0-1

[Event "*** Titled Tuesday Blitz"]
[Site "Chess.com"]
[Date "2018.10.02"]
[Round "5"]
[White "dmosesov"]
[Black "Blagorod"]
[Result "0-1"]
[WhiteElo "2300"]
[BlackElo "2044"]
[TimeControl "180+2"]
[EndTime "14:02:20 PDT"]
[Termination "Blagorod won by resignation"]

1. e4 {[%clk 0:03:01.9]} 1... e5 {[%clk 0:03:00.7]} 2. Nf3 {[%clk 0:03:02.5]}
2... Nf6 {[%clk 0:03:01.8]} 3. Nxe5 {[%clk 0:03:03.1]} 3... d6 {[%clk
0:03:02.9]} 4. Nf3 {[%clk 0:03:04.5]} 4... Nxe4 {[%clk 0:03:04.4]} 5. d4 {[%clk
0:03:06.1]} 5... d5 {[%clk 0:03:05.2]} 6. Bd3 {[%clk 0:03:07.7]} 6... Nc6 {[%clk
0:03:00.3]} 7. O-O {[%clk 0:03:08.4]} 7... Be7 {[%clk 0:02:57.7]} 8. c4 {[%clk
0:03:06.2]} 8... Nb4 {[%clk 0:02:54.8]} 9. cxd5 {[%clk 0:03:07]} 9... Nxd3
{[%clk 0:02:53.8]} 10. Qxd3 {[%clk 0:03:08.9]} 10... Qxd5 {[%clk 0:02:54.5]} 11.
h3 {[%clk 0:02:52.1]} 11... O-O {[%clk 0:02:51]} 12. Nc3 {[%clk 0:02:53]} 12...
Nxc3 {[%clk 0:02:51.1]} 13. bxc3 {[%clk 0:02:54.9]} 13... Bf5 {[%clk 0:02:50.7]}
14. Qd1 {[%clk 0:02:55.4]} 14... Be4 {[%clk 0:02:44.8]} 15. Ne1 {[%clk
0:02:46.5]} 15... Bd6 {[%clk 0:02:33.7]} 16. Nc2 {[%clk 0:02:26.8]} 16... Rad8
{[%clk 0:02:14]} 17. Ne3 {[%clk 0:02:27.3]} 17... Qc6 {[%clk 0:02:03.7]} 18. Qb3
{[%clk 0:02:26]} 18... Bf4 {[%clk 0:01:49.1]} 19. f3 {[%clk 0:01:30]} 19... Bg6
{[%clk 0:01:42.6]} 20. Ng4 {[%clk 0:01:25.3]} 20... Bg3 {[%clk 0:01:35.7]} 21.
Bg5 {[%clk 0:01:21.8]} 21... Rde8 {[%clk 0:01:29.9]} 22. Be3 {[%clk 0:00:27.9]}
22... h5 {[%clk 0:01:03.8]} 23. Bf2 {[%clk 0:00:28.7]} 23... Bf4 {[%clk
0:00:57.1]} 24. Nh2 {[%clk 0:00:21.1]} 24... Qd6 {[%clk 0:00:53]} 25. g3 {[%clk
0:00:21.4]} 25... Bxg3 {[%clk 0:00:52.3]} 26. Bxg3 {[%clk 0:00:18.3]} 26...
Qxg3+ {[%clk 0:00:52.5]} 27. Kh1 {[%clk 0:00:20.2]} 27... Re2 {[%clk 0:00:51.7]}
0-1

[Event "*** Titled Tuesday Blitz"]
[Site "Chess.com"]
[Date "2018.10.02"]
[Round "5"]
[White "akretchetov"]
[Black "Turkey-Champion"]
[Result "0-1"]
[WhiteElo "2282"]
[BlackElo "2334"]
[TimeControl "180+2"]
[EndTime "14:02:22 PDT"]
[Termination "Turkey-Champion won by resignation"]

1. d4 {[%clk 0:03:01.9]} 1... Nf6 {[%clk 0:03:00.8]} 2. Bg5 {[%clk 0:03:01.7]}
2... Ne4 {[%clk 0:03:01.3]} 3. Bf4 {[%clk 0:03:02.5]} 3... d5 {[%clk 0:03:02.5]}
4. e3 {[%clk 0:03:02.8]} 4... c5 {[%clk 0:03:00.3]} 5. c3 {[%clk 0:02:59.9]}
5... Nc6 {[%clk 0:03:00.9]} 6. Bd3 {[%clk 0:03:00.2]} 6... g6 {[%clk 0:02:58.4]}
7. Nd2 {[%clk 0:02:47.6]} 7... Nxd2 {[%clk 0:02:54.9]} 8. Qxd2 {[%clk
0:02:48.6]} 8... Bg7 {[%clk 0:02:56.6]} 9. Nf3 {[%clk 0:02:46.9]} 9... O-O
{[%clk 0:02:55.9]} 10. h3 {[%clk 0:02:38.7]} 10... Na5 {[%clk 0:02:49.1]} 11.
dxc5 {[%clk 0:02:34.4]} 11... Nc4 {[%clk 0:02:38.2]} 12. Bxc4 {[%clk 0:02:33.7]}
12... dxc4 {[%clk 0:02:40.1]} 13. Qxd8 {[%clk 0:02:34]} 13... Rxd8 {[%clk
0:02:42]} 14. Nd2 {[%clk 0:02:17.7]} 14... Be6 {[%clk 0:02:41.6]} 15. e4 {[%clk
0:02:10.1]} 15... Rac8 {[%clk 0:02:37.3]} 16. Be3 {[%clk 0:02:11.2]} 16... f5
{[%clk 0:02:12.5]} 17. Ke2 {[%clk 0:02:05.5]} 17... Bf7 {[%clk 0:02:13.2]} 18.
Rhd1 {[%clk 0:01:58.7]} 18... e5 {[%clk 0:02:05.8]} 19. f3 {[%clk 0:01:46.5]}
19... Bf8 {[%clk 0:01:52.2]} 20. b4 {[%clk 0:01:41.3]} 20... Rd3 {[%clk
0:01:27.3]} 21. Rac1 {[%clk 0:01:31]} 21... a5 {[%clk 0:01:14.1]} 22. a3 {[%clk
0:01:28.4]} 22... a4 {[%clk 0:00:57.4]} 23. Nf1 {[%clk 0:01:21.1]} 23... Rcd8
{[%clk 0:00:55.8]} 24. Rd2 {[%clk 0:01:18.2]} 24... Be7 {[%clk 0:00:29.2]} 25.
Rxd3 {[%clk 0:01:09.1]} 25... Rxd3 {[%clk 0:00:28.8]} 26. Nd2 {[%clk 0:00:58.5]}
26... Kf8 {[%clk 0:00:23.7]} 27. Nb1 {[%clk 0:00:57.9]} 27... Rxe3+ {[%clk
0:00:22.7]} 28. Kxe3 {[%clk 0:00:52.5]} 28... Bg5+ {[%clk 0:00:23.8]} 0-1

[Event "*** Titled Tuesday Blitz"]
[Site "Chess.com"]
[Date "2018.10.02"]
[Round "5"]
[White "francogreek"]
[Black "Siemba"]
[Result "1-0"]
[WhiteElo "2349"]
[BlackElo "1992"]
[TimeControl "180+2"]
[EndTime "14:02:27 PDT"]
[Termination "francogreek won on time"]

1. Nf3 {[%clk 0:03:01.9]} 1... Nf6 {[%clk 0:02:51]} 2. g3 {[%clk 0:03:00.7]}
2... g6 {[%clk 0:02:49.3]} 3. Bg2 {[%clk 0:03:02.6]} 3... Bg7 {[%clk 0:02:51.2]}
4. O-O {[%clk 0:03:03.5]} 4... O-O {[%clk 0:02:47.7]} 5. d4 {[%clk 0:03:05.4]}
5... d6 {[%clk 0:02:30.5]} 6. b3 {[%clk 0:03:04.9]} 6... Ne4 {[%clk 0:02:26.7]}
7. Bb2 {[%clk 0:03:05]} 7... c5 {[%clk 0:02:24.7]} 8. Nbd2 {[%clk 0:03:05.5]}
8... f5 {[%clk 0:02:10.1]} 9. Nxe4 {[%clk 0:02:49.9]} 9... fxe4 {[%clk
0:02:05.3]} 10. Ng5 {[%clk 0:02:51.5]} 10... Nc6 {[%clk 0:02:00.6]} 11. Bxe4
{[%clk 0:02:38.1]} 11... Nxd4 {[%clk 0:01:52.2]} 12. Rb1 {[%clk 0:02:37.1]}
12... h6 {[%clk 0:01:31.3]} 13. Nf3 {[%clk 0:02:20.9]} 13... Bf5 {[%clk
0:01:27.6]} 14. Nxd4 {[%clk 0:02:16.3]} 14... cxd4 {[%clk 0:01:07.9]} 15. Bxf5
{[%clk 0:02:15.2]} 15... Rxf5 {[%clk 0:01:07.3]} 16. Bxd4 {[%clk 0:02:15]} 16...
Rd5 {[%clk 0:01:05.2]} 17. c3 {[%clk 0:02:15.9]} 17... Bxd4 {[%clk 0:00:40.8]}
18. cxd4 {[%clk 0:02:16.4]} 18... Qb6 {[%clk 0:00:39.9]} 19. Qc2 {[%clk
0:02:16.8]} 19... Qxd4 {[%clk 0:00:33.7]} 20. Qxg6+ {[%clk 0:02:17]} 20... Qg7
{[%clk 0:00:34.5]} 21. Qe6+ {[%clk 0:02:16.3]} 21... Qf7 {[%clk 0:00:27.5]} 22.
Qxh6 {[%clk 0:02:16.4]} 22... Rh5 {[%clk 0:00:28]} 23. Qe3 {[%clk 0:02:11.2]}
23... Kg7 {[%clk 0:00:14]} 24. Qd4+ {[%clk 0:02:11]} 24... e5 {[%clk 0:00:14.9]}
25. Qg4+ {[%clk 0:02:12.1]} 25... Kh6 {[%clk 0:00:14.4]} 26. Rbc1 {[%clk
0:02:03.8]} 26... Rg8 {[%clk 0:00:14.8]} 27. Qf3 {[%clk 0:02:05.5]} 27... Qe6
{[%clk 0:00:13.3]} 28. Rc7 {[%clk 0:01:50.5]} 28... Rf5 {[%clk 0:00:08.6]} 29.
Qe3+ {[%clk 0:01:47.8]} 29... Kg6 {[%clk 0:00:09.9]} 30. Qe4 {[%clk 0:01:41.1]}
30... Kf6 {[%clk 0:00:08.2]} 31. Qh4+ {[%clk 0:01:41.5]} 31... Kg6 {[%clk
0:00:04.5]} 32. Qg4+ {[%clk 0:01:42.3]} 32... Rg5 {[%clk 0:00:05]} 33. Qxe6+
{[%clk 0:01:43.2]} 1-0

[Event "*** Titled Tuesday Blitz"]
[Site "Chess.com"]
[Date "2018.10.02"]
[Round "5"]
[White "robbykevlishvili"]
[Black "Keranke"]
[Result "1-0"]
[WhiteElo "2682"]
[BlackElo "2769"]
[TimeControl "180+2"]
[EndTime "14:02:48 PDT"]
[Termination "robbykevlishvili won by resignation"]

1. e4 {[%clk 0:03:01.9]} 1... g6 {[%clk 0:03:00.6]} 2. d4 {[%clk 0:03:02.7]}
2... Bg7 {[%clk 0:03:02.2]} 3. Nf3 {[%clk 0:03:04.6]} 3... d6 {[%clk 0:03:03.8]}
4. Bc4 {[%clk 0:03:05.1]} 4... Nf6 {[%clk 0:03:05]} 5. Qe2 {[%clk 0:03:06.4]}
5... O-O {[%clk 0:03:06.7]} 6. O-O {[%clk 0:03:07]} 6... c6 {[%clk 0:03:06.3]}
7. e5 {[%clk 0:03:07.6]} 7... dxe5 {[%clk 0:03:08.2]} 8. dxe5 {[%clk 0:03:08.8]}
8... Nd5 {[%clk 0:03:09.8]} 9. Rd1 {[%clk 0:03:09.3]} 9... Qc7 {[%clk 0:03:05]}
10. h3 {[%clk 0:03:09]} 10... Be6 {[%clk 0:03:03.4]} 11. Bb3 {[%clk 0:03:09.9]}
11... Nd7 {[%clk 0:03:02]} 12. Re1 {[%clk 0:03:06.1]} 12... Nc5 {[%clk
0:02:59.4]} 13. Nc3 {[%clk 0:03:03.3]} 13... Nxc3 {[%clk 0:02:55.4]} 14. bxc3
{[%clk 0:03:05.2]} 14... Rad8 {[%clk 0:02:19.9]} 15. Nd4 {[%clk 0:03:03.1]}
15... Bc8 {[%clk 0:02:18.1]} 16. Ba3 {[%clk 0:03:01.2]} 16... Nxb3 {[%clk
0:02:11.2]} 17. axb3 {[%clk 0:03:01.4]} 17... c5 {[%clk 0:02:06.9]} 18. Nf3
{[%clk 0:03:02.3]} 18... b6 {[%clk 0:02:06.5]} 19. Bb2 {[%clk 0:02:59.9]} 19...
a5 {[%clk 0:02:05.5]} 20. c4 {[%clk 0:02:58.1]} 20... Bb7 {[%clk 0:02:05.8]} 21.
Bc3 {[%clk 0:02:56.9]} 21... Bc6 {[%clk 0:01:58.8]} 22. Ng5 {[%clk 0:02:56.3]}
22... Qb7 {[%clk 0:01:52.4]} 23. Qg4 {[%clk 0:02:57.1]} 23... h6 {[%clk
0:01:45.8]} 24. Ne4 {[%clk 0:02:56.7]} 24... Kh7 {[%clk 0:01:47.1]} 25. h4
{[%clk 0:02:56.6]} 25... Qd7 {[%clk 0:01:41]} 26. Qf4 {[%clk 0:02:49.4]} 26...
Qe6 {[%clk 0:01:33.6]} 27. Ng3 {[%clk 0:02:43.7]} 27... h5 {[%clk 0:01:25.9]}
28. Ne4 {[%clk 0:02:42.4]} 28... Qg4 {[%clk 0:01:26.9]} 29. Ng5+ {[%clk
0:02:42.3]} 29... Kg8 {[%clk 0:01:27.6]} 30. Qxg4 {[%clk 0:02:40.4]} 30... hxg4
{[%clk 0:01:29.5]} 31. Kh2 {[%clk 0:02:40.2]} 31... Bd7 {[%clk 0:01:15.1]} 32.
Kg3 {[%clk 0:02:31.8]} 32... Bf5 {[%clk 0:01:16.1]} 33. Re2 {[%clk 0:02:31.1]}
33... Rd7 {[%clk 0:01:14.9]} 34. f3 {[%clk 0:02:25]} 34... gxf3 {[%clk
0:01:15.4]} 35. Kxf3 {[%clk 0:02:26.9]} 35... f6 {[%clk 0:01:11.2]} 36. exf6
{[%clk 0:02:26.8]} 36... exf6 {[%clk 0:00:58.4]} 37. Ne6 {[%clk 0:02:27.8]}
37... Re8 {[%clk 0:00:59.7]} 38. Rae1 {[%clk 0:02:08.1]} 38... Bh8 {[%clk
0:00:47.1]} 39. g4 {[%clk 0:02:06.6]} 39... Bxe6 {[%clk 0:00:46.8]} 40. Rxe6
{[%clk 0:02:07.1]} 40... Rxe6 {[%clk 0:00:42]} 41. Rxe6 {[%clk 0:02:08]} 41...
Rb7 {[%clk 0:00:43.9]} 42. Re8+ {[%clk 0:02:05.2]} 42... Kh7 {[%clk 0:00:42.4]}
43. Re6 {[%clk 0:01:50.2]} 43... Kg8 {[%clk 0:00:37.2]} 44. Rc6 {[%clk
0:01:51.1]} 44... Kf7 {[%clk 0:00:36.3]} 45. g5 {[%clk 0:01:51.6]} 45... Bg7
{[%clk 0:00:32.6]} 46. gxf6 {[%clk 0:01:52]} 46... Bh6 {[%clk 0:00:29.7]} 47.
Rc8 {[%clk 0:01:51.6]} 47... Bf8 {[%clk 0:00:27.5]} 48. Ke4 {[%clk 0:01:49.6]}
48... Bd6 {[%clk 0:00:27]} 49. Kd5 {[%clk 0:01:48.9]} 49... Bf4 {[%clk 0:00:28]}
1-0

[Event "*** Titled Tuesday Blitz"]
[Site "Chess.com"]
[Date "2018.10.02"]
[Round "5"]
[White "Shant_Sargsyan"]
[Black "TastyFrenchFries"]
[Result "1-0"]
[WhiteElo "2905"]
[BlackElo "2418"]
[TimeControl "180+2"]
[EndTime "14:02:50 PDT"]
[Termination "Shant_Sargsyan won by resignation"]

1. d4 {[%clk 0:02:52.6]} 1... e6 {[%clk 0:02:58.7]} 2. Nf3 {[%clk 0:02:51.7]}
2... Nf6 {[%clk 0:02:59.9]} 3. c4 {[%clk 0:02:51.4]} 3... Bb4+ {[%clk
0:02:59.4]} 4. Bd2 {[%clk 0:02:52.2]} 4... Qe7 {[%clk 0:03:00]} 5. g3 {[%clk
0:02:53.1]} 5... Nc6 {[%clk 0:02:59.7]} 6. e3 {[%clk 0:02:54.5]} 6... Bxd2+
{[%clk 0:02:56.2]} 7. Qxd2 {[%clk 0:02:56.4]} 7... d6 {[%clk 0:02:48.6]} 8. Nc3
{[%clk 0:02:56]} 8... O-O {[%clk 0:02:49]} 9. Bg2 {[%clk 0:02:57.2]} 9... e5
{[%clk 0:02:45.4]} 10. O-O {[%clk 0:02:57.5]} 10... Bg4 {[%clk 0:02:34.7]} 11.
h3 {[%clk 0:02:53.2]} 11... Bxf3 {[%clk 0:02:32.3]} 12. Bxf3 {[%clk 0:02:52.6]}
12... exd4 {[%clk 0:02:28.9]} 13. exd4 {[%clk 0:02:54.5]} 13... Qd7 {[%clk
0:02:28.8]} 14. Kg2 {[%clk 0:02:54.4]} 14... Rae8 {[%clk 0:02:27]} 15. Rfe1
{[%clk 0:02:54.4]} 15... Rxe1 {[%clk 0:02:26.2]} 16. Rxe1 {[%clk 0:02:56.3]}
16... Re8 {[%clk 0:02:27.8]} 17. Rxe8+ {[%clk 0:02:56]} 17... Qxe8 {[%clk
0:02:29.7]} 18. h4 {[%clk 0:02:51.3]} 18... h6 {[%clk 0:02:27.1]} 19. Nb5 {[%clk
0:02:50.2]} 19... Qb8 {[%clk 0:02:17.9]} 20. Qe3 {[%clk 0:02:49.9]} 20... a6
{[%clk 0:02:16.8]} 21. Nc3 {[%clk 0:02:48.6]} 21... Qe8 {[%clk 0:02:17.6]} 22.
Nd5 {[%clk 0:02:29.7]} 22... Qxe3 {[%clk 0:01:56.7]} 23. Nxf6+ {[%clk
0:02:30.1]} 23... gxf6 {[%clk 0:01:58.6]} 24. fxe3 {[%clk 0:02:31.7]} 24... Nd8
{[%clk 0:01:54.6]} 25. Bg4 {[%clk 0:02:22.6]} 25... b6 {[%clk 0:01:48.7]} 26.
Kf3 {[%clk 0:02:23.6]} 26... Kf8 {[%clk 0:01:32.4]} 27. Ke4 {[%clk 0:02:23.9]}
27... c6 {[%clk 0:01:32]} 28. b4 {[%clk 0:02:22.4]} 28... a5 {[%clk 0:01:28.7]}
29. b5 {[%clk 0:02:19.9]} 29... d5+ {[%clk 0:01:21.5]} 30. cxd5 {[%clk
0:02:09.7]} 30... cxb5 {[%clk 0:01:22.4]} 31. d6 {[%clk 0:02:04.5]} 31... Ke8
{[%clk 0:01:17.7]} 32. Kd5 {[%clk 0:02:04.2]} 32... b4 {[%clk 0:01:08.9]} 33.
Bd1 {[%clk 0:02:05.3]} 33... Kd7 {[%clk 0:01:06.4]} 34. Ba4+ {[%clk 0:02:06.6]}
34... Kc8 {[%clk 0:01:07.9]} 35. Be8 {[%clk 0:02:01.9]} 35... Kb7 {[%clk
0:01:04.9]} 36. e4 {[%clk 0:01:58.5]} 36... Ka6 {[%clk 0:01:02.2]} 37. Kc4
{[%clk 0:01:57.1]} 37... Nb7 {[%clk 0:00:56.8]} 38. e5 {[%clk 0:01:47.9]} 38...
fxe5 {[%clk 0:00:57.1]} 39. dxe5 {[%clk 0:01:49.8]} 39... Nd8 {[%clk 0:00:58.1]}
40. Kd5 {[%clk 0:01:40.4]} 40... b5 {[%clk 0:00:58.1]} 41. Bxf7 {[%clk
0:01:41.6]} 41... a4 {[%clk 0:00:53.3]} 42. Bg6 {[%clk 0:01:42]} 42... b3 {[%clk
0:00:36.9]} 43. axb3 {[%clk 0:01:43.9]} 43... a3 {[%clk 0:00:34.1]} 44. Bb1
{[%clk 0:01:45.3]} 44... Kb6 {[%clk 0:00:35]} 45. e6 {[%clk 0:01:45.8]} 45...
Nc6 {[%clk 0:00:36.5]} 46. e7 {[%clk 0:01:46]} 46... Nb4+ {[%clk 0:00:36.7]} 47.
Ke4 {[%clk 0:01:45.2]} 1-0

[Event "*** Titled Tuesday Blitz"]
[Site "Chess.com"]
[Date "2018.10.02"]
[Round "5"]
[White "DishonorOnYourCow"]
[Black "PaulfromSPb"]
[Result "0-1"]
[WhiteElo "2260"]
[BlackElo "2513"]
[TimeControl "180+2"]
[EndTime "14:03:01 PDT"]
[Termination "PaulfromSPb won by resignation"]

1. d4 {[%clk 0:03:01.9]} 1... Nf6 {[%clk 0:03:00.1]} 2. c4 {[%clk 0:03:01.8]}
2... e6 {[%clk 0:03:00.7]} 3. Nc3 {[%clk 0:03:02.6]} 3... Bb4 {[%clk 0:03:01.4]}
4. Nf3 {[%clk 0:03:03.2]} 4... O-O {[%clk 0:03:02]} 5. Bg5 {[%clk 0:03:02.8]}
5... c5 {[%clk 0:02:56.1]} 6. e3 {[%clk 0:03:02.9]} 6... Qa5 {[%clk 0:02:52.9]}
7. Bxf6 {[%clk 0:02:56]} 7... Bxc3+ {[%clk 0:02:53.5]} 8. bxc3 {[%clk
0:02:56.2]} 8... Qxc3+ {[%clk 0:02:54.6]} 9. Nd2 {[%clk 0:02:53.4]} 9... gxf6
{[%clk 0:02:55.6]} 10. Rc1 {[%clk 0:02:46.5]} 10... Qa5 {[%clk 0:02:55.8]} 11.
Qg4+ {[%clk 0:02:29.9]} 11... Kh8 {[%clk 0:02:56.4]} 12. Qh4 {[%clk 0:02:30]}
12... Kg7 {[%clk 0:02:57.1]} 13. Qg4+ {[%clk 0:02:30.4]} 13... Kh8 {[%clk
0:02:57.6]} 14. Qh4 {[%clk 0:02:31.1]} 14... Qd8 {[%clk 0:02:58.2]} 15. Nf3
{[%clk 0:02:20.1]} 15... cxd4 {[%clk 0:02:50]} 16. Bd3 {[%clk 0:02:19.3]} 16...
f5 {[%clk 0:02:10.8]} 17. Ng5 {[%clk 0:02:18]} 17... Kg7 {[%clk 0:02:11.9]} 18.
Qxh7+ {[%clk 0:02:12.6]} 18... Kf6 {[%clk 0:02:12.8]} 19. Nf3 {[%clk 0:01:29.4]}
19... Rh8 {[%clk 0:01:55.8]} 20. Qxh8+ {[%clk 0:00:46.1]} 20... Qxh8 {[%clk
0:01:55.8]} 21. Nxd4 {[%clk 0:00:47.5]} 21... Nc6 {[%clk 0:01:54.6]} 22. Nb5
{[%clk 0:00:46.7]} 22... a6 {[%clk 0:01:53.9]} 23. Nc3 {[%clk 0:00:34.1]} 23...
Ke7 {[%clk 0:01:54]} 24. O-O {[%clk 0:00:31.4]} 24... d6 {[%clk 0:01:54.7]} 25.
e4 {[%clk 0:00:27.3]} 25... f4 {[%clk 0:01:54.1]} 26. c5 {[%clk 0:00:27.4]}
26... dxc5 {[%clk 0:01:50.5]} 27. Na4 {[%clk 0:00:27.6]} 27... Ne5 {[%clk
0:01:49.4]} 28. Nxc5 {[%clk 0:00:21.6]} 28... b6 {[%clk 0:01:48.7]} 29. Na4
{[%clk 0:00:19.1]} 29... Nxd3 {[%clk 0:01:47.9]} 30. Rc7+ {[%clk 0:00:19.6]}
30... Kf6 {[%clk 0:01:48.4]} 31. Nxb6 {[%clk 0:00:19.2]} 31... Rb8 {[%clk
0:01:48.8]} 32. Rc6 {[%clk 0:00:15.9]} 32... Kg7 {[%clk 0:01:47.2]} 33. Rd1
{[%clk 0:00:16.2]} 33... Ne5 {[%clk 0:01:44.1]} 34. Rcd6 {[%clk 0:00:14.1]}
34... Qh5 {[%clk 0:01:44.7]} 35. f3 {[%clk 0:00:14.1]} 35... Nxf3+ {[%clk
0:01:43]} 36. gxf3 {[%clk 0:00:14.2]} 36... Qxf3 {[%clk 0:01:44]} 37. R6d3
{[%clk 0:00:12.8]} 37... Qg4+ {[%clk 0:01:43.7]} 38. Kh1 {[%clk 0:00:13.7]}
38... Bb7 {[%clk 0:01:42.3]} 39. Re1 {[%clk 0:00:07.9]} 39... Qg6 {[%clk
0:01:19.5]} 40. Nd5 {[%clk 0:00:06.4]} 40... exd5 {[%clk 0:01:16.7]} 41. Rg1
{[%clk 0:00:06.9]} 41... dxe4 {[%clk 0:01:16.6]} 42. Rxg6+ {[%clk 0:00:06.7]}
42... Kxg6 {[%clk 0:01:17.7]} 0-1

[Event "*** Titled Tuesday Blitz"]
[Site "Chess.com"]
[Date "2018.10.02"]
[Round "5"]
[White "saraswathii"]
[Black "MatthewG-p4p"]
[Result "0-1"]
[WhiteElo "2311"]
[BlackElo "2654"]
[TimeControl "180+2"]
[EndTime "14:03:05 PDT"]
[Termination "MatthewG-p4p won by checkmate"]

1. e4 {[%clk 0:01:50.3]} 1... e6 {[%clk 0:03:00.2]} 2. d3 {[%clk 0:01:50.6]}
2... d5 {[%clk 0:02:59.6]} 3. Nd2 {[%clk 0:01:52.5]} 3... Nf6 {[%clk 0:02:46.7]}
4. Ngf3 {[%clk 0:01:53.5]} 4... c5 {[%clk 0:02:48.2]} 5. g3 {[%clk 0:01:53.7]}
5... Nc6 {[%clk 0:02:49.8]} 6. Bg2 {[%clk 0:01:55]} 6... g6 {[%clk 0:02:51.4]}
7. O-O {[%clk 0:01:56.4]} 7... Bg7 {[%clk 0:02:52.9]} 8. Qe2 {[%clk 0:01:57.5]}
8... O-O {[%clk 0:02:54.4]} 9. c3 {[%clk 0:01:58.7]} 9... b6 {[%clk 0:02:55.1]}
10. Re1 {[%clk 0:01:57.9]} 10... Ba6 {[%clk 0:02:55.2]} 11. exd5 {[%clk
0:01:41.9]} 11... Nxd5 {[%clk 0:02:49.9]} 12. Ne4 {[%clk 0:01:38.9]} 12... h6
{[%clk 0:02:47.8]} 13. g4 {[%clk 0:01:27.9]} 13... Nde7 {[%clk 0:02:41.6]} 14.
Rd1 {[%clk 0:01:25.4]} 14... Qd7 {[%clk 0:02:34.7]} 15. Bxh6 {[%clk 0:01:23.4]}
15... Rad8 {[%clk 0:02:32.6]} 16. Bxg7 {[%clk 0:01:18.9]} 16... Kxg7 {[%clk
0:02:34.5]} 17. Qe3 {[%clk 0:01:09]} 17... Nd5 {[%clk 0:02:31.8]} 18. Qd2 {[%clk
0:01:01.8]} 18... Rh8 {[%clk 0:02:29.3]} 19. d4 {[%clk 0:01:00.1]} 19... Qc7
{[%clk 0:02:21.9]} 20. dxc5 {[%clk 0:00:40]} 20... Nf4 {[%clk 0:02:18.8]} 21.
Qe3 {[%clk 0:00:28.6]} 21... Nxg2 {[%clk 0:01:20]} 22. Kxg2 {[%clk 0:00:28.1]}
22... bxc5 {[%clk 0:01:20.9]} 23. Qg5 {[%clk 0:00:19.8]} 23... Qe7 {[%clk
0:01:07.7]} 24. Qxe7 {[%clk 0:00:20.1]} 24... Nxe7 {[%clk 0:01:09.6]} 25. Nxc5
{[%clk 0:00:21.3]} 25... Bc4 {[%clk 0:01:06.7]} 26. Ne5 {[%clk 0:00:21.1]} 26...
Bd5+ {[%clk 0:01:07]} 27. f3 {[%clk 0:00:22.3]} 27... f6 {[%clk 0:00:58.8]} 28.
c4 {[%clk 0:00:18.9]} 28... fxe5 {[%clk 0:00:53.7]} 29. cxd5 {[%clk 0:00:19.6]}
29... Rxd5 {[%clk 0:00:54.8]} 30. Nxe6+ {[%clk 0:00:20.5]} 30... Kf6 {[%clk
0:00:55.9]} 31. Nc7 {[%clk 0:00:21.1]} 31... Rc5 {[%clk 0:00:54.8]} 32. Na6
{[%clk 0:00:22]} 32... Rc2+ {[%clk 0:00:55.3]} 33. Kg3 {[%clk 0:00:22.7]} 33...
Rhxh2 {[%clk 0:00:56.5]} 34. Rg1 {[%clk 0:00:23.1]} 34... Nd5 {[%clk 0:00:55.1]}
35. Rad1 {[%clk 0:00:21.7]} 35... Nf4 {[%clk 0:00:55.9]} 36. g5+ {[%clk
0:00:16.3]} 36... Kf5 {[%clk 0:00:54.2]} 37. Nb4 {[%clk 0:00:15.6]} 37... Nh5#
{[%clk 0:00:49.2]} 0-1